[Event "German Bundesliga 2024-25"]
[Site "Germany"]
[Date "2024.10.05"]
[Round "1.15"]
[White "Graf, Alexander"]
[Black "Tilicheev, Viacheslav"]
[Result "0-1"]
[Annotator "TA"]
[ECO "D35"]
[WhiteElo "2528"]
[BlackElo "2438"]
[PlyCount "148"]
[EventDate "2024.09.27"]
[EventType "team-tourn"]
[EventCountry "GER"]
[SourceTitle "playchess.com"]
[Source "ChessBase"]
[SourceQuality "1"]
[WhiteTeam "Deizisau"]
[BlackTeam "Deggendorf"]
[TimeControl "40/5400+30:1800+30"]

{[%evp 42,148,0,-59,-10,-20,-16,-10,0,0,0,0,28,0,1,0,0,0,0,0,18,-1,0,0,0,-68,-69,-97,-76,-70,-80,-150,-154,-138,-47,-131,-137,-137,-137,-137,-144,-145,-151,-127,-137,-169,-81,-162,-162,-162,-162,-472,-81,-513,-460,-707,-655,-940,-919,-878,-742,-29955,-29959,-29957,-29961,-29961,-29963,-29964,-29965,-29963,-29966,-29966,-29967,-29967,-29968,-29968,-29968,-29970,-29971,-29971,-29972,-29974,-29975,-29976,-29975,-29975,-29976,-29976,-29977,-29977,-29976,-29976,-29974,-29974,-29975,-29975,-29976,-29975,-29976,-29976,-29977,-29977,-29978,-29979,-29980,-29980,-29981,-29982,-29983]} 1. c4 {[%emt 0:00:04]} e6 {[%emt 0:00:13]} 2. Nc3 {[%emt 0:01:16]} d5 {[%emt 0:00:12]} 3. d4 {[%emt 0:00:08]} Nf6 {[%emt 0:00:24]} 4. cxd5 {[%emt 0:04:46]} exd5 {[%emt 0:00:07]} 5. Bg5 {[%emt 0:00:06]} Bb4 {[%emt 0:00:25]} 6. e3 {[%emt 0:03:04]} h6 {[%emt 0:01:35]} 7. Bh4 {[%emt 0:06:36]} g5 {[%emt 0:00:12] D35: Queen's Gambit Declined: Exchange Variation.} 8. Bg3 {[%emt 0:00:11]} Ne4 {[%emt 0:00:14]} 9. a3 {[%emt 0:06:55]} Nxc3 {[%emt 0:14:12]} 10. Qb3 {[%emt 0:14:15]} Bxa3 {[%emt 0:20:19]} 11. bxc3 {[%emt 0:06:19]} Be7 {[%emt 0:00:24]} 12. Bd3 $146 {[%emt 0:08:39]} ({Predecessor:} 12. Nf3 c6 13. c4 O-O 14. h4 g4 15. Ne5 h5 16. cxd5 cxd5 17. Bb5 Be6 18. Ke2 {½-½ Hammer,J (2632)-Lodici,L (2407) EU-Cup 33rd Antalya 2017 (4.1)}) 12... c5 {[%emt 0:11:46]} 13. dxc5 {[%emt 0:02:56]} Nd7 {[%emt 0:00:54]} 14. Bb5 {[%emt 0:07:53]} O-O {[%emt 0:06:01]} 15. Bxd7 {[%emt 0:05:55]} Qxd7 {[%emt 0:04:35]} 16. h4 {[%emt 0:02:10]} a5 {[%emt 0:11:24]} 17. hxg5 {[%emt 0:00:45]} hxg5 {[%emt 0:00:28]} 18. Nf3 {[%emt 0:00:24]} a4 {[%emt 0:01:59]} 19. Qb4 {[%emt 0:05:05]} Qg4 {[%emt 0:03:07]} 20. Nd4 {[%emt 0:02:16]} Qe4 {[%emt 0:02:48]} 21. Rh2 {[%emt 0:03:13]} Bf6 {[%emt 0:03:02]} 22. Qb1 {[%emt 0:08:11]} (22. Bd6 $11 Rd8 23. Kd2) 22... Bxd4 {[%emt 0:04:18]} (22... Qxb1+ $15 23. Rxb1 a3) 23. cxd4 $11 {[%emt 0:00:10]} Qxb1+ $1 {[%emt 0:00:05]} 24. Rxb1 {[%emt 0:00:09]} Bf5 {[%emt 0:00:26]} 25. Ra1 $1 {[%emt 0:00:22]} (25. Rxb7 $2 a3 26. Rh1 a2 $19) 25... a3 {[%emt 0:01:26]} 26. Bd6 {[%emt 0:00:16]} Rfc8 {[%emt 0:03:51]} 27. Be5 {[%emt 0:00:23]} Kf8 {[%emt 0:00:57]} 28. Rh5 {[%emt 0:00:41]} f6 {[%emt 0:04:08]} 29. Bxf6 {[%emt 0:00:29]} Kf7 {[%emt 0:00:03]} 30. Be5 $1 {[%emt 0:01:40]} (30. Bxg5 $2 Kg6 31. Rh6+ (31. g4 $2 Bxg4 32. Rh6+ Kxg5 $19) 31... Kxg5 $19) 30... Kg6 {[%emt 0:00:13]} 31. Rh1 {[%emt 0:00:21]} a2 {[%emt 0:00:24]} 32. f3 {[%emt 0:00:15]} Ra3 {[%emt 0:01:53]} 33. Kf2 {[%emt 0:01:06]} (33. Kd2 $11) 33... Rca8 $1 $15 {[%emt 0:00:46]} 34. Rhd1 {[%emt 0:02:42]} Rb3 {[%emt 0:00:39]} 35. Rd2 {[%emt 0:00:22]} Bb1 {[%emt 0:00:14]} 36. e4 {[%emt 0:01:25]} ({White should play} 36. Kg3) 36... dxe4 $17 {[%emt 0:00:43]} 37. fxe4 {[%emt 0:00:06]} Rf8+ {[%emt 0:01:14]} (37... g4 $1 $17 38. g3 Rf8+ (38... Bxe4 39. Rdxa2 Rxa2+ 40. Rxa2 $11) 39. Kg1 Re3 (39... Bxe4 40. Rdxa2 Rf5 41. Rh2 $11) 40. Rdxa2 Bxa2 41. Rxa2 Rxe4) 38. Kg1 {[%emt 0:02:38]} ({Better is} 38. Ke2 $1 $15) 38... Re3 $1 $17 {[%emt 0:00:23]} (38... Bxe4 39. Raxa2 (39. Rdxa2 Bd5 $11) 39... Rb1+ 40. Kh2 $14) 39. Rb2 {[%emt 0:00:59]} Rf7 {[%emt 0:01:37]} (39... Bxe4 40. Raxa2 (40. Rbxa2 g4 $11) 40... Bd5 41. Ra1 $16) 40. Raxb1 {[%emt 0:02:50]} axb1=Q+ {[%emt 0:00:12]} 41. Rxb1 {[%emt 0:30:06]} Rxe4 {[%emt 0:30:17]} 42. Rb3 {[%emt 0:00:45]} Re2 {[%emt 0:00:00]} 43. Kh2 {[%emt 0:00:00]} Rd2 {[%emt 0:00:00]} (43... g4 $1 $19 44. Bg3 Rd2) 44. Kh3 {[%emt 0:00:00]} (44. Kg3 $17) 44... Kf5 $1 $19 {[%emt 0:00:00]} 45. Rf3+ {[%emt 0:00:00]} Ke6 $1 {[%emt 0:00:00]} 46. Rg3 $2 {[%emt 0:00:00]} (46. Re3) 46... Rh7+ $1 $19 {[%emt 0:00:00]} 47. Kg4 {[%emt 0:00:00]} Rh2 {[%emt 0:00:00]} 48. Kf3 {[%emt 0:00:00]} (48. Rc3 $142 Rdxg2+ (48... Rhxg2+ $2 49. Kh5 $19) 49. Bg3) 48... Rd3+ $19 {[%emt 0:00:00]} 49. Ke4 {[%emt 0:00:00]} Rxg3 {[%emt 0:00:00]} 50. d5+ {[%emt 0:00:00]} Kd7 {[%emt 0:00:00]} 51. c6+ {[%emt 0:00:00]} bxc6 {[%emt 0:00:00]} 52. dxc6+ {[%emt 0:00:00]} Kxc6 {[%emt 0:00:00]} 53. Bxg3 {[%emt 0:00:00]} Rxg2 {[%emt 0:00:00]} 54. Kf3 {[%emt 0:00:00]} Rg1 $1 {[%emt 0:00:00]} 55. Bf2 {[%emt 0:00:00] [#]} g4+ $1 {[%emt 0:00:00]} 56. Kf4 {[%emt 0:00:42] [#]} Rf1 $1 {[%emt 0:00:00]} 57. Kg3 {[%emt 0:00:01]} Kd5 {[%emt 0:00:00]} 58. Ba7 {[%emt 0:01:48]} Rf7 {[%emt 0:00:00]} 59. Bb8 {[%emt 0:01:03]} Rg7 {[%emt 0:00:00]} 60. Bf4 {[%emt 0:00:04]} Ke4 {[%emt 0:00:00]} 61. Bd6 {[%emt 0:00:41]} Kf5 {[%emt 0:00:00]} 62. Bb8 {[%emt 0:00:10]} Rb7 {[%emt 0:00:00]} 63. Bd6 {[%emt 0:00:02]} Rd7 {[%emt 0:00:27]} 64. Bb8 {[%emt 0:00:32]} Rd3+ {[%emt 0:02:39]} 65. Kg2 {[%emt 0:00:02]} Rd2+ {[%emt 0:00:25]} 66. Kg3 {[%emt 0:00:07]} Rb2 {[%emt 0:00:06]} 67. Bc7 {[%emt 0:00:11]} Rb3+ {[%emt 0:00:11]} 68. Kg2 {[%emt 0:01:23]} Rb7 {[%emt 0:00:47]} 69. Bd6 {[%emt 0:00:16]} Rd7 {[%emt 0:00:09]} 70. Bb8 {[%emt 0:00:24]} Kg5 {[%emt 0:00:10]} 71. Be5 {[%emt 0:00:09]} Rd5 {[%emt 0:00:09]} 72. Bc7 {[%emt 0:00:19]} Rd2+ {[%emt 0:00:05]} 73. Kg3 {[%emt 0:00:17]} Rd3+ {[%emt 0:00:05]} 74. Kg2 {[%emt 0:00:10]} Kh4 {[%emt 0:00:13]} 0-1

[Event "German Bundesliga 2024-25"]
[Site "Germany"]
[Date "2024.10.05"]
[Round "1.16"]
[White "Wisnet, Dominic"]
[Black "Koellner, Ruben Gideon"]
[Result "0-1"]
[Annotator "RC"]
[ECO "C78"]
[WhiteElo "2284"]
[BlackElo "2480"]
[PlyCount "148"]
[EventDate "2024.09.27"]
[EventType "team-tourn"]
[EventCountry "GER"]
[SourceTitle "playchess.com"]
[Source "ChessBase"]
[SourceQuality "1"]
[WhiteTeam "Deggendorf"]
[BlackTeam "Deizisau"]
[TimeControl "40/5400+30:1800+30"]

1. e4 {[%emt 0:00:03]} e5 {[%emt 0:00:14]} 2. Nf3 {[%emt 0:00:09]} Nc6 {[%emt 0:00:07]} 3. Bb5 {[%emt 0:00:08]} a6 {[%emt 0:00:25]} 4. Ba4 {[%emt 0:00:48]} Nf6 {[%emt 0:01:09]} 5. O-O {[%emt 0:00:26]} Bc5 {[%emt 0:00:36]} 6. d3 {[%emt 0:02:33]} b5 {[%emt 0:02:27]} 7. Bb3 {[%emt 0:00:11]} d6 {[%emt 0:04:12]} 8. a4 {[%emt 0:00:46]} Bg4 {[%emt 0:04:48]} 9. c3 {[%emt 0:02:39]} Rb8 {[%emt 0:04:34]} 10. axb5 {[%emt 0:02:52]} axb5 {[%emt 0:00:07]} 11. Be3 {[%emt 0:07:59]} O-O {[%emt 0:05:36]} 12. Nbd2 {[%emt 0:04:17]} Bxe3 {[%emt 0:03:46]} 13. fxe3 {[%emt 0:00:02]} Ne7 {[%emt 0:00:30]} 14. Qe1 {[%emt 0:05:27]} Ng6 {[%emt 0:01:01]} 15. h3 {[%emt 0:09:20]} Bxf3 {[%emt 0:01:38]} 16. Nxf3 {[%emt 0:01:33]} b4 {[%emt 0:05:16]} 17. Bc4 {[%emt 0:04:45]} c6 {[%emt 0:04:12]} 18. cxb4 {[%emt 0:15:02]} Qb6 {[%emt 0:04:26]} 19. Ra6 {[%emt 0:02:24]} Qb7 {[%emt 0:00:31]} 20. Ra4 {[%emt 0:06:41]} d5 {[%emt 0:02:23]} 21. exd5 {[%emt 0:00:02]} cxd5 {[%emt 0:00:31]} 22. Bb3 {[%emt 0:00:02]} Rfe8 {[%emt 0:08:09]} 23. Qd2 {[%emt 0:14:47]} Qe7 {[%emt 0:09:39]} 24. Re1 {[%emt 0:08:29]} Rb5 {[%emt 0:06:57]} 25. e4 {[%emt 0:00:51]} Reb8 {[%emt 0:07:10]} 26. exd5 {[%emt 0:00:26]} Rxb4 {[%emt 0:09:19]} 27. Rxb4 {[%emt 0:00:02]} Rxb4 {[%emt 0:02:29]} 28. Qc3 {[%emt 0:04:26]} Qb7 {[%emt 0:01:58]} 29. Nd2 {[%emt 0:02:38]} Rf4 {[%emt 0:03:51]} 30. Rc1 {[%emt 0:00:36]} Nf8 {[%emt 0:02:59]} 31. Qxe5 {[%emt 0:03:22]} Qb6+ {[%emt 0:00:03]} 32. Kh1 {[%emt 0:00:16]} Rf2 {[%emt 0:00:12]} 33. Qe1 {[%emt 0:00:40]} Rxd2 {[%emt 0:01:30]} 34. Qxd2 {[%emt 0:00:01]} Qxb3 {[%emt 0:00:07]} 35. d6 {[%emt 0:00:13]} Qb6 {[%emt 0:02:38]} 36. b4 {[%emt 0:01:11]} Qxd6 {[%emt 0:00:27]} 37. b5 {[%emt 0:00:03]} h6 {[%emt 0:01:47]} 38. Qe3 {[%emt 0:01:00]} N8d7 {[%emt 0:00:54]} 39. d4 {[%emt 0:01:05]} Qd5 {[%emt 0:00:34]} 40. Rc8+ {[%emt 0:00:41]} Kh7 {[%emt 0:00:08]} 41. Qd3+ {[%emt 0:31:05]} Ne4 {[%emt 0:06:02]} 42. Rc7 {[%emt 0:00:00]} f5 {[%emt 0:02:52]} 43. Qc4 {[%emt 0:00:00]} Qd6 {[%emt 0:06:40]} 44. Qc6 {[%emt 0:00:00]} Qf4 {[%emt 0:01:03]} 45. Qc1 {[%emt 0:00:00]} Nf2+ {[%emt 0:05:06]} 46. Kg1 {[%emt 0:00:00]} Qxd4 {[%emt 0:00:04]} 47. Rxd7 {[%emt 0:00:00]} Qxd7 {[%emt 0:11:04]} 48. Kxf2 {[%emt 0:00:00]} Qxb5 {[%emt 0:00:04]} 49. Qc2 {[%emt 0:00:00]} Qe5 {[%emt 0:00:12]} 50. Kg1 {[%emt 0:00:00]} Kg6 {[%emt 0:00:47]} 51. Qd3 {[%emt 0:00:00]} Kg5 {[%emt 0:00:58]} 52. Qd8+ {[%emt 0:00:00]} Kh5 {[%emt 0:00:19]} 53. Kf2 {[%emt 0:00:00]} Qf4+ {[%emt 0:00:25]} 54. Kg1 {[%emt 0:00:00]} Qe3+ {[%emt 0:01:04]} 55. Kh2 {[%emt 0:00:00]} Qe5+ {[%emt 0:00:03]} 56. Kg1 {[%emt 0:00:00]} g5 {[%emt 0:00:28]} 57. Qd2 {[%emt 0:00:29]} Kg6 {[%emt 0:01:22]} 58. Qd3 {[%emt 0:00:28]} Qe4 {[%emt 0:00:33]} 59. Qd6+ {[%emt 0:02:50]} Kh5 {[%emt 0:00:06]} 60. Qf6 {[%emt 0:01:14]} f4 {[%emt 0:00:47]} 61. Kh2 {[%emt 0:00:42]} Qe3 {[%emt 0:00:14]} 62. Kh1 {[%emt 0:00:59]} Qe4 {[%emt 0:00:12]} 63. Kh2 {[%emt 0:00:12]} Qe1 {[%emt 0:00:10]} 64. Qc6 {[%emt 0:00:40]} Qe5 {[%emt 0:01:34]} 65. Kh1 {[%emt 0:00:24]} Kh4 {[%emt 0:00:25]} 66. Qxh6+ {[%emt 0:04:32]} Kg3 {[%emt 0:00:01]} 67. Qb6 {[%emt 0:00:11]} Qe3 {[%emt 0:00:27]} 68. Qb1 {[%emt 0:00:21]} f3 {[%emt 0:01:10]} 69. Qb8+ {[%emt 0:01:12]} Qf4 {[%emt 0:00:06]} 70. Qb2 {[%emt 0:00:41]} g4 {[%emt 0:01:11]} 71. Qc2 {[%emt 0:00:29]} Qe5 {[%emt 0:00:18]} 72. Qc1 {[%emt 0:00:34]} fxg2+ {[%emt 0:00:05]} 73. Kg1 {[%emt 0:00:13]} Qd4+ {[%emt 0:00:04]} 74. Qe3+ {[%emt 0:00:07]} Qxe3# {[%emt 0:00:04]} 0-1

[Event "German Bundesliga 2024-25"]
[Site "Germany"]
[Date "2025.02.01"]
[Round "7.9"]
[White "Indjic, Aleksandar"]
[Black "Livaic, Leon"]
[Result "1-0"]
[Annotator "ChessBase"]
[ECO "A21"]
[WhiteElo "2647"]
[BlackElo "2557"]
[PlyCount "81"]
[EventDate "2024.09.27"]
[EventType "team-tourn"]
[EventCountry "GER"]
[SourceTitle "playchess.com"]
[Source "ChessBase"]
[SourceQuality "1"]
[WhiteTeam "Deggendorf"]
[BlackTeam "Heimbach-Weis-Neuwied"]
[TimeControl "40/5400+30:1800+30"]

1. c4 {[%emt 0:00:25]} d6 {[%emt 0:00:39]} 2. Nc3 {[%emt 0:00:31]} e5 {[%emt 0:00:19]} 3. Nf3 {[%emt 0:00:17]} f5 {[%emt 0:00:39]} 4. e3 {[%emt 0:02:56]} Nf6 {[%emt 0:00:24]} 5. h4 {[%emt 0:06:54]} Be7 {[%emt 0:03:12]} 6. d4 {[%emt 0:00:35]} e4 {[%emt 0:01:09]} 7. Ng5 {[%emt 0:00:07]} c6 {[%emt 0:00:22]} 8. Nh3 {[%emt 0:08:57]} Na6 {[%emt 0:08:32]} 9. Nf4 {[%emt 0:04:39]} Nc7 {[%emt 0:01:31]} 10. d5 {[%emt 0:02:47]} O-O {[%emt 0:06:25]} 11. b3 {[%emt 0:09:21]} cxd5 {[%emt 0:09:11]} 12. Ncxd5 {[%emt 0:00:16]} Ncxd5 {[%emt 0:01:37]} 13. Nxd5 {[%emt 0:00:10]} Nxd5 {[%emt 0:00:37]} 14. Qxd5+ {[%emt 0:00:07]} Kh8 {[%emt 0:00:03]} 15. Bb2 {[%emt 0:00:09]} Bf6 {[%emt 0:04:44]} 16. O-O-O {[%emt 0:00:28]} Bxb2+ {[%emt 0:00:23]} 17. Kxb2 {[%emt 0:00:06]} Qf6+ {[%emt 0:01:07]} 18. Qd4 {[%emt 0:02:38]} b6 {[%emt 0:01:11]} 19. Be2 {[%emt 0:02:05]} Bb7 {[%emt 0:01:09]} 20. Qxf6 {[%emt 0:01:39]} Rxf6 {[%emt 0:00:05]} 21. Rd4 {[%emt 0:04:36]} Kg8 {[%emt 0:26:45]} 22. Rhd1 {[%emt 0:03:08]} Rd8 {[%emt 0:00:05]} 23. Rc1 {[%emt 0:02:06]} f4 {[%emt 0:08:39]} 24. c5 {[%emt 0:10:04]} bxc5 {[%emt 0:02:33]} 25. Rxc5 {[%emt 0:00:13]} fxe3 {[%emt 0:00:48]} 26. fxe3 {[%emt 0:00:18]} dxc5 {[%emt 0:11:54]} 27. Rxd8+ {[%emt 0:00:24]} Kf7 {[%emt 0:00:01]} 28. Rd7+ {[%emt 0:01:50]} Ke8 {[%emt 0:00:22]} 29. Rxb7 {[%emt 0:08:50]} Rf2 {[%emt 0:00:15]} 30. Rxg7 {[%emt 0:03:16]} Rxe2+ {[%emt 0:00:05]} 31. Kc3 {[%emt 0:00:23]} Rxe3+ {[%emt 0:00:54]} 32. Kd2 {[%emt 0:00:33]} Rd3+ {[%emt 0:00:20]} 33. Ke2 {[%emt 0:00:07]} c4 {[%emt 0:05:23]} 34. bxc4 {[%emt 0:02:23]} Ra3 {[%emt 0:00:32]} 35. g4 {[%emt 0:00:22]} h6 {[%emt 0:03:26]} 36. Rg6 {[%emt 0:00:16]} h5 {[%emt 0:02:20]} 37. gxh5 {[%emt 0:00:07]} Kf7 {[%emt 0:00:11]} 38. Rg4 {[%emt 0:00:07]} Rxa2+ {[%emt 0:00:20]} 39. Ke3 {[%emt 0:00:06]} Ra5 {[%emt 0:01:04]} 40. Rg5 {[%emt 0:04:40]} Ra4 {[%emt 0:00:06]} 41. c5 {[%emt 0:30:06]} 1-0

[Event "German Bundesliga 2024-25"]
[Site "Germany"]
[Date "2025.02.01"]
[Round "7.10"]
[White "Kraemer, Martin"]
[Black "Ghosh, Diptayan"]
[Result "1/2-1/2"]
[Annotator "ChessBase"]
[ECO "B12"]
[WhiteElo "2579"]
[BlackElo "2569"]
[PlyCount "75"]
[EventDate "2024.09.27"]
[EventType "team-tourn"]
[EventCountry "GER"]
[SourceTitle "playchess.com"]
[Source "ChessBase"]
[SourceQuality "1"]
[WhiteTeam "Heimbach-Weis-Neuwied"]
[BlackTeam "Deggendorf"]
[TimeControl "40/5400+30:1800+30"]

1. e4 {[%emt 0:00:02]} c6 {[%emt 0:00:45]} 2. d4 {[%emt 0:00:04]} d5 {[%emt 0:00:04]} 3. e5 {[%emt 0:00:01]} c5 {[%emt 0:00:10]} 4. Nf3 {[%emt 0:00:07]} cxd4 {[%emt 0:00:07]} 5. Qxd4 {[%emt 0:00:06]} Nc6 {[%emt 0:00:10]} 6. Qf4 {[%emt 0:00:03]} g6 {[%emt 0:00:27]} 7. Nc3 {[%emt 0:00:25]} d4 {[%emt 0:00:17]} 8. Nb5 {[%emt 0:00:09]} Bh6 {[%emt 0:00:20]} 9. Qh4 {[%emt 0:07:10]} Bxc1 {[%emt 0:00:20]} 10. Rxc1 {[%emt 0:00:15]} a6 {[%emt 0:00:22]} 11. Nbxd4 {[%emt 0:00:32]} Nxe5 {[%emt 0:00:13]} 12. Be2 {[%emt 0:04:02]} Nxf3+ {[%emt 0:00:19]} 13. Nxf3 {[%emt 0:01:32]} Qa5+ {[%emt 0:00:09]} 14. c3 {[%emt 0:00:45]} Nf6 {[%emt 0:00:07]} 15. O-O {[%emt 0:05:23]} O-O {[%emt 0:00:14]} 16. a3 {[%emt 0:21:48]} Qc7 {[%emt 0:09:11]} 17. Rfe1 {[%emt 0:09:39]} b6 {[%emt 0:13:55]} 18. c4 {[%emt 0:11:36]} a5 {[%emt 0:11:58]} 19. c5 {[%emt 0:08:20]} bxc5 {[%emt 0:00:58]} 20. Qg5 {[%emt 0:01:29]} Qb6 {[%emt 0:16:36]} 21. Qxc5 {[%emt 0:01:12]} Rb8 {[%emt 0:02:16]} 22. Qxe7 {[%emt 0:11:11]} Re8 {[%emt 0:01:49]} 23. Qc5 {[%emt 0:00:03]} Qxc5 {[%emt 0:01:35]} 24. Rxc5 {[%emt 0:00:03]} Rxb2 {[%emt 0:02:30]} 25. Bd3 {[%emt 0:02:21]} Rxe1+ {[%emt 0:09:38]} 26. Nxe1 {[%emt 0:00:02]} Be6 {[%emt 0:00:41]} 27. Rxa5 {[%emt 0:00:19]} Rd2 {[%emt 0:02:24]} 28. h3 {[%emt 0:13:01]} Rd1 {[%emt 0:04:05]} 29. Kf1 {[%emt 0:00:52]} Nd5 {[%emt 0:02:10]} 30. Bc2 {[%emt 0:00:12]} Ra1 {[%emt 0:04:50]} 31. Ke2 {[%emt 0:00:39]} Nb6 {[%emt 0:00:06]} 32. Nd3 {[%emt 0:01:23]} Nc4 {[%emt 0:01:33]} 33. Ra8+ {[%emt 0:00:04]} Kg7 {[%emt 0:00:02]} 34. Nf4 {[%emt 0:01:03]} Bd7 {[%emt 0:01:37]} 35. Bd3 {[%emt 0:01:23]} Rxa3 {[%emt 0:01:28]} 36. Rxa3 {[%emt 0:00:28]} Nxa3 {[%emt 0:00:04]} 37. h4 {[%emt 0:00:06]} Bb5 {[%emt 0:01:48]} 38. g3 {[%emt 0:00:07]} 1/2-1/2

[Event "German Bundesliga 2024-25"]
[Site "Germany"]
[Date "2025.02.01"]
[Round "7.11"]
[White "Sankalp Gupta"]
[Black "Lodici, Lorenzo"]
[Result "1-0"]
[Annotator "ChessBase"]
[ECO "B84"]
[WhiteElo "2550"]
[BlackElo "2574"]
[PlyCount "47"]
[EventDate "2024.09.27"]
[EventType "team-tourn"]
[EventCountry "GER"]
[SourceTitle "playchess.com"]
[Source "ChessBase"]
[SourceQuality "1"]
[WhiteTeam "Deggendorf"]
[BlackTeam "Heimbach-Weis-Neuwied"]
[TimeControl "40/5400+30:1800+30"]

1. Nf3 {[%emt 0:00:06]} c5 {[%emt 0:04:13]} 2. e4 {[%emt 0:01:19]} d6 {[%emt 0:00:10]} 3. d4 {[%emt 0:00:10]} cxd4 {[%emt 0:00:07]} 4. Nxd4 {[%emt 0:02:31]} Nf6 {[%emt 0:01:13]} 5. Nc3 {[%emt 0:00:02]} a6 {[%emt 0:00:05]} 6. Be3 {[%emt 0:00:46]} e6 {[%emt 0:00:25]} 7. Be2 {[%emt 0:03:33]} b5 {[%emt 0:00:07]} 8. Bf3 {[%emt 0:14:17]} Nfd7 {[%emt 0:25:20]} 9. e5 {[%emt 0:29:50]} d5 {[%emt 0:00:40]} 10. Nxd5 {[%emt 0:05:18]} exd5 {[%emt 0:00:05]} 11. Bxd5 {[%emt 0:00:06]} Ra7 {[%emt 0:00:07]} 12. e6 {[%emt 0:13:37]} Ne5 {[%emt 0:06:49]} 13. Nf3 {[%emt 0:00:55]} Nxf3+ {[%emt 0:11:54]} 14. Qxf3 {[%emt 0:00:49]} Bxe6 {[%emt 0:00:29]} 15. Bxe6 {[%emt 0:01:28]} Bb4+ {[%emt 0:00:21]} 16. Kf1 {[%emt 0:02:57]} Re7 {[%emt 0:06:53]} 17. Bb3 {[%emt 0:02:02]} Qc8 {[%emt 0:01:07]} 18. Qg3 {[%emt 0:02:21]} f6 {[%emt 0:06:24]} 19. a4 {[%emt 0:00:43]} Nc6 {[%emt 0:06:08]} 20. axb5 {[%emt 0:00:19]} axb5 {[%emt 0:00:02]} 21. c3 {[%emt 0:00:50]} Ba5 {[%emt 0:01:52]} 22. Bc5 {[%emt 0:00:31]} Rb7 {[%emt 0:02:40]} 23. Qe3+ {[%emt 0:01:53]} Kd8 {[%emt 0:00:30]} 24. Be6 {[%emt 0:00:10]} 1-0

[Event "German Bundesliga 2024-25"]
[Site "Germany"]
[Date "2025.02.01"]
[Round "7.12"]
[White "Nasuta, Grzegorz"]
[Black "Petrov, Martin"]
[Result "1/2-1/2"]
[Annotator "ChessBase"]
[ECO "B52"]
[WhiteElo "2497"]
[BlackElo "2550"]
[PlyCount "40"]
[EventDate "2024.09.27"]
[EventType "team-tourn"]
[EventCountry "GER"]
[SourceTitle "playchess.com"]
[Source "ChessBase"]
[SourceQuality "1"]
[WhiteTeam "Heimbach-Weis-Neuwied"]
[BlackTeam "Deggendorf"]
[TimeControl "40/5400+30:1800+30"]

1. e4 {[%emt 0:00:03]} c5 {[%emt 0:00:06]} 2. Nf3 {[%emt 0:00:05]} d6 {[%emt 0:00:05]} 3. Bb5+ {[%emt 0:00:14]} Bd7 {[%emt 0:00:27]} 4. Bxd7+ {[%emt 0:00:08]} Nxd7 {[%emt 0:00:06]} 5. O-O {[%emt 0:00:19]} e6 {[%emt 0:00:07]} 6. Qe2 {[%emt 0:02:40]} Be7 {[%emt 0:00:01]} 7. c3 {[%emt 0:03:06]} Ngf6 {[%emt 0:00:02]} 8. d4 {[%emt 0:00:22]} O-O {[%emt 0:00:30]} 9. Rd1 {[%emt 0:03:51]} Qc7 {[%emt 0:00:24]} 10. Bg5 {[%emt 0:03:56]} h6 {[%emt 0:03:04]} 11. Bh4 {[%emt 0:00:29]} Rfe8 {[%emt 0:08:44]} 12. e5 {[%emt 0:11:42]} dxe5 {[%emt 0:02:27]} 13. dxe5 {[%emt 0:00:20]} Nd5 {[%emt 0:01:16]} 14. c4 {[%emt 0:00:15]} Nf4 {[%emt 0:15:03]} 15. Qe3 {[%emt 0:12:02]} Bxh4 {[%emt 0:08:43]} 16. Qxf4 {[%emt 0:13:35]} Bf6 {[%emt 0:09:41]} 17. Re1 {[%emt 0:04:11]} Rad8 {[%emt 0:03:05]} 18. Nc3 {[%emt 0:00:33]} a6 {[%emt 0:06:58]} 19. Rad1 {[%emt 0:13:16]} Be7 {[%emt 0:00:02]} 20. Ne4 {[%emt 0:02:40]} f6 {[%emt 0:00:49]} 1/2-1/2

[Event "German Bundesliga 2024-25"]
[Site "Germany"]
[Date "2025.02.01"]
[Round "7.13"]
[White "Bogosavljevic, Boban"]
[Black "Zilka, Stepan"]
[Result "1/2-1/2"]
[Annotator "ChessBase"]
[ECO "E05"]
[WhiteElo "2480"]
[BlackElo "2539"]
[PlyCount "71"]
[EventDate "2024.09.27"]
[EventType "team-tourn"]
[EventCountry "GER"]
[SourceTitle "playchess.com"]
[Source "ChessBase"]
[SourceQuality "1"]
[WhiteTeam "Deggendorf"]
[BlackTeam "Heimbach-Weis-Neuwied"]
[TimeControl "40/5400+30:1800+30"]

1. Nf3 {[%emt 0:00:05]} d5 {[%emt 0:00:16]} 2. g3 {[%emt 0:00:09]} Nf6 {[%emt 0:00:07]} 3. Bg2 {[%emt 0:00:06]} e6 {[%emt 0:00:09]} 4. O-O {[%emt 0:00:13]} Be7 {[%emt 0:00:11]} 5. d4 {[%emt 0:00:42]} O-O {[%emt 0:00:09]} 6. c4 {[%emt 0:00:12]} dxc4 {[%emt 0:00:10]} 7. Qc2 {[%emt 0:07:15]} a6 {[%emt 0:00:21]} 8. a4 {[%emt 0:00:06]} Nc6 {[%emt 0:00:29]} 9. Qxc4 {[%emt 0:05:11]} Na5 {[%emt 0:01:23]} 10. Qc2 {[%emt 0:00:39]} b6 {[%emt 0:00:11]} 11. Ne5 {[%emt 0:23:16]} Bb7 {[%emt 0:00:07]} 12. Bxb7 {[%emt 0:00:07]} Nxb7 {[%emt 0:00:05]} 13. Nc6 {[%emt 0:00:07]} Qe8 {[%emt 0:00:05]} 14. Rd1 {[%emt 0:00:05]} Bc5 {[%emt 0:01:32]} 15. Ne5 {[%emt 0:00:45]} Bd6 {[%emt 0:01:06]} 16. Nd2 {[%emt 0:07:56]} c5 {[%emt 0:04:51]} 17. Ne4 {[%emt 0:07:04]} Nxe4 {[%emt 0:07:10]} 18. Qxe4 {[%emt 0:00:17]} cxd4 {[%emt 0:01:01]} 19. Nc4 {[%emt 0:03:00]} Rc8 {[%emt 0:34:10]} 20. Nxd6 {[%emt 0:11:22]} Nxd6 {[%emt 0:00:07]} 21. Qxd4 {[%emt 0:00:15]} Rc6 {[%emt 0:02:05]} 22. b3 {[%emt 0:10:49]} Nf5 {[%emt 0:00:29]} 23. Qf4 {[%emt 0:00:18]} Qc8 {[%emt 0:03:18]} 24. Ba3 {[%emt 0:05:25]} Re8 {[%emt 0:03:22]} 25. Rac1 {[%emt 0:02:25]} h6 {[%emt 0:03:37]} 26. Qe4 {[%emt 0:03:12]} Ne7 {[%emt 0:07:19]} 27. Qf3 {[%emt 0:03:46]} Rxc1 {[%emt 0:08:25]} 28. Rxc1 {[%emt 0:00:06]} Qd7 {[%emt 0:00:05]} 29. Bxe7 {[%emt 0:03:27]} Qxe7 {[%emt 0:00:22]} 30. Rc6 {[%emt 0:01:17]} Rb8 {[%emt 0:05:53]} 31. Qd3 {[%emt 0:03:04]} Qb4 {[%emt 0:05:09]} 32. Qd6 {[%emt 0:01:47]} Qxd6 {[%emt 0:00:28]} 33. Rxd6 {[%emt 0:00:02]} a5 {[%emt 0:00:54]} 34. e4 {[%emt 0:01:32]} b5 {[%emt 0:01:21]} 35. axb5 {[%emt 0:00:41]} Rxb5 {[%emt 0:00:06]} 36. Rd3 {[%emt 0:00:05]} 1/2-1/2